[Event "Charlotte Spring IM-C 2023"]
[Site "Charlotte"]
[Date "2023.03.16"]
[Round "1.5"]
[White "Georgiev, Vladimir"]
[Black "Amburgy, Ryan"]
[Result "1-0"]
[ECO "B10"]
[WhiteElo "2404"]
[BlackElo "2242"]
[Annotator "TA"]
[PlyCount "119"]
[EventDate "2023.03.14"]
[EventType "tourn"]
[EventCountry "USA"]
[SourceTitle "playchess.com"]
[Source "ChessBase"]
[SourceQuality "1"]
[TimeControl "5400+30"]

{[%evp 9,119,6,3,18,19,14,27,20,10,10,26,19,30,0,36,37,40,50,82,78,76,79,78,78,79,72,86,81,79,79,86,77,147,117,122,115,156,155,236,178,191,174,265,190,181,207,222,218,208,203,214,204,236,214,211,209,215,211,257,214,259,274,422,416,596,572,611,587,607,429,383,406,499,469,511,485,645,636,591,507,535,393,433,435,424,392,423,398,549,385,678,666,1357,1156,888,662,1467,1403,29987,29988,29993,29994,29994,29994,29994,29993,29993,29994,29996,29997,29997,29998]} 1. e4 {[%emt 0:03:33]} c6 {[%emt 0:00:11]} 2. Nf3 {[%emt 0:00:07]} d5 {[%emt 0:00:05]} 3. d3 {[%emt 0:00:05]} Qc7 {[%emt 0:00:06]} 4. Nc3 {[%emt 0:00:09]} dxe4 {[%emt 0:00:06]} 5. dxe4 {[%emt 0:00:17]} e5 {[%emt 0:00:05]} 6. Bc4 {[%emt 0:00:07] B10: Caro-Kann: 2 d3 and 2 c4.} b5 {[%emt 0:00:11]} 7. Bb3 {[%emt 0:00:06]} h6 {[%emt 0:00:09] Prevents Ng5.} 8. O-O {[%emt 0:00:09] White has an edge.} Nf6 {[%emt 1:33:37] [#]} 9. a4 $146 {[%emt 0:00:22]} ({Predecessor:} 9. Re1 Nbd7 10. a4 b4 11. Ne2 Bc5 12. Ng3 O-O 13. h3 Rd8 14. Nh4 Be7 15. Qf3 {1-0 Alekseenko,K (2703)-Karjakin,S (2757) Moscow Smyslov Region Group Cup blitz 2021 (9)}) 9... b4 {[%emt 0:00:30]} 10. Ne2 {[%cal Bc3e2,Be2g3,Bg3f5][%mdl 32]} Nbd7 {[%emt 0:00:00]} 11. Ng3 {[%emt 0:00:56]} Nc5 {[%emt 0:00:00]} (11... Ba6 $5 {[%cal Ra6f1]}) 12. Bc4 {[%emt 0:00:45]} Be6 {[%emt 0:00:00]} (12... Ncxe4 $2 13. Nxe4 (13. Re1 Nd6 $18) 13... Nxe4 14. Qe2 $18) 13. Qe2 {[%emt 0:01:23]} Be7 {[%emt 0:00:00]} 14. Be3 {[%emt 0:08:51] [#] Hoping for Bxc5.} Nfd7 {[%emt 0:00:00]} 15. Bxe6 {[%emt 0:07:47]} Nxe6 {[%emt 0:00:00]} 16. Nf5 {[%emt 0:00:06]} Bf6 {[%emt 0:00:00]} 17. Rfd1 {[%emt 0:01:13]} O-O {[%emt 0:00:00]} 18. Qd2 {[%emt 0:01:14][%csl LRb4,LRd7]} Rfd8 {[%emt 0:00:00]} 19. Qxb4 {[%emt 0:00:18]} Rab8 {[%emt 0:00:00]} 20. Qc3 $36 {[%emt 0:01:11][%mdl 2048] Keeping Black busy.} Nf4 {[%emt 0:00:00]} ({Better is} 20... c5) 21. Re1 {[%emt 0:02:29] And now Bxf4 would win.} Ne6 {[%emt 0:06:00]} 22. Rad1 {[%emt 0:05:08]} Nb6 {[%emt 0:00:00]} 23. b3 {[%emt 0:05:38]} h5 {[%emt 0:00:00]} (23... c5 $16 {might work better.} 24. h3 Nd7) 24. Bc5 {[%emt 0:10:16]} Rxd1 {[%emt 0:00:00]} 25. Rxd1 {[%emt 0:00:08] [#] Strongly threatening Bd6.} g6 {[%emt 0:00:00]} (25... Rd8 $142 26. Bd6 Qb7) 26. Ne3 {[%emt 0:02:53]} Rd8 {[%emt 0:00:00] Wards off Bd6} 27. Rxd8+ {[%emt 0:03:42]} Qxd8 {[%emt 0:00:00]} 28. Bxb6 {[%emt 0:00:14]} (28. Nxe5 Qc7 29. Bxb6 axb6 $17) 28... Qxb6 {[%emt 0:00:00]} 29. Nc4 {[%emt 0:01:57]} (29. Nxe5 Nd4 30. a5 Qd8 $11) 29... Qd8 {[%emt 0:00:00]} 30. Qd3 {[%emt 0:03:47] Repels Qd1+} (30. Ncxe5 $2 Bxe5 31. Qe1 Bc7 $19) 30... Nd4 {[%emt 0:00:00]} 31. Nxd4 {[%emt 0:03:57]} (31. Ncxe5 Nxf3+ 32. Nxf3 (32. gxf3 Qc7 $18) 32... Qxd3 33. cxd3 Bc3) 31... exd4 $18 {[%emt 0:00:00][%mdl 4096] Endgame KQB-KQN} 32. e5 {[%emt 0:00:52][%cal Be4e5,Be5e6][%mdl 32]} Be7 {[%emt 0:00:00]} 33. Qe4 {[%emt 0:01:10]} c5 {[%emt 0:00:00]} 34. Kf1 {[%emt 0:01:03]} Bf8 {[%emt 0:00:00]} 35. e6 {[%emt 0:02:17]} f5 {[%emt 0:00:00]} (35... Qf6 $142 36. exf7+ Kxf7 37. Ne5+ Kg7 38. Qb7+ Kh6) 36. Qb7 {[%emt 0:02:16] Threatening mate with Qf7+.} Qf6 {[%emt 0:00:00] Prevents Qf7+.} (36... Qe7 $142 37. Qc8 Kg7) 37. Qxa7 {[%emt 0:09:09]} Qxe6 {[%emt 0:00:00]} 38. Qb7 {[%emt 0:00:08] a5 would be deadly.} Qf6 {[%emt 0:00:00]} 39. Qd5+ {[%emt 0:00:15]} Kh7 {[%emt 0:00:00]} 40. Ke2 {[%emt 0:03:56]} Qg5 {[%emt 0:00:00]} 41. Ne5 {[%emt 0:00:32]} Bg7 {[%emt 0:00:00]} 42. Nd3 {[%emt 0:01:27] Against Qc1} (42. Qxc5 f4 $16) 42... h4 {[%emt 0:00:00]} 43. a5 {[%emt 0:01:58]} (43. Qxc5 Qxg2 44. Qc7 Qg4+ 45. Kf1 Qd1+ 46. Ne1 d3 47. cxd3 Qxb3 $18) 43... c4 {[%emt 0:00:00]} 44. bxc4 {[%emt 0:02:28]} Qe7+ {[%emt 0:00:00]} 45. Kf1 {[%emt 0:04:20]} Qa3 {[%emt 0:00:00]} 46. c5 {[%emt 0:01:27]} Qa1+ {[%emt 0:00:00]} 47. Ke2 {[%emt 0:00:19] Threatens to win with c6.} Qxa5 {[%emt 0:00:00]} 48. Qc4 {[%emt 0:00:40] Repels Qa4} Bh6 {[%emt 0:01:57]} 49. f4 {[%emt 0:01:11]} (49. Qxd4 $2 Qd2+ 50. Kf1 Qd1+ 51. Ne1 Qxd4 $19) 49... Qa8 $2 {[%emt 0:01:57]} (49... Qc7 50. Qxd4 Qb7) 50. c6 {[%emt 0:00:49] c7 is the strong threat.} ({Stronger than} 50. Qxd4 Qxg2+ 51. Qf2 Qe4+ 52. Kd1 h3 $14) 50... Qe8+ {[%emt 0:00:04]} 51. Kf1 {[%emt 0:01:01] Black must now prevent c7. Active counter play!} h3 {[%emt 0:01:24]} 52. gxh3 {[%emt 0:00:43] aiming for c7.} ({Weaker is} 52. Qxd4 hxg2+ 53. Kg1 Qxc6 $11) 52... Qe4 {[%emt 0:00:57]} 53. c7 {[%emt 0:01:59]} Bxf4 {[%emt 0:00:25]} 54. Nf2 {[%emt 0:01:43] White mates.} ({And not} 54. c8=B Qh1+ 55. Ke2 Qe4+ 56. Kf1 Qh1+ 57. Ke2 Qe4+ 58. Kf1 $11) 54... Qe3 {[%emt 0:05:00]} 55. c8=Q {[%emt 0:00:27]} Be5 {[%emt 0:00:03]} 56. Q4g8+ {[%emt 0:01:28]} Kh6 {[%emt 0:00:00]} 57. Qcf8+ {[%emt 0:00:16]} Kg5 {[%emt 0:00:03]} 58. Qe7+ {[%emt 0:00:23]} Kf4 {[%emt 0:00:14]} 59. Qh4+ {[%emt 0:00:19]} Kf3 {[%emt 0:00:04]} 60. Qd5+ {[%emt 0:00:06] Weighted Error Value: White=0.22 (precise) /Black=0.47} 1-0

[Event "Charlotte Spring IM-C 2023"]
[Site "Charlotte"]
[Date "2023.03.16"]
[Round "2.1"]
[White "Adamson, Robby"]
[Black "Amburgy, Ryan"]
[Result "1/2-1/2"]
[ECO "C47"]
[WhiteElo "2265"]
[BlackElo "2242"]
[Annotator "TA"]
[PlyCount "47"]
[EventDate "2023.03.14"]
[EventType "tourn"]
[EventCountry "USA"]
[SourceTitle "playchess.com"]
[Source "ChessBase"]
[SourceQuality "1"]
[TimeControl "5400+30"]

{[%evp 16,47,0,0,0,-3,0,-4,-5,-13,-8,0,34,27,30,29,31,29,33,19,36,18,29,29,57,50,52,14,18,6,28,0,0,0]} 1. e4 {[%emt 0:02:41]} e5 {[%emt 0:00:05]} 2. Nf3 {[%emt 0:00:06]} Nc6 {[%emt 0:00:05]} 3. Nc3 {[%emt 0:00:03]} Nf6 {[%emt 0:00:06]} 4. g3 {[%emt 0:00:05]} d5 {[%emt 0:01:24]} 5. exd5 {[%emt 0:00:10]} Nxd5 {[%emt 0:00:01]} 6. Bg2 {[%emt 0:00:04]} Nxc3 {[%emt 0:00:14]} 7. bxc3 {[%emt 0:00:05]} Bc5 {[%emt 0:00:24]} 8. O-O {[%emt 0:00:08]} O-O {[%emt 0:00:05]} 9. Re1 {[%emt 0:00:12]} Bg4 {[%emt 0:01:37][%cal Bc8g4,Bg4h5,Bh5g6,Bg6c2,Bc2a4,Ba4b5,Bb5a6][%mdl 32] C47: Scotch Four Knights and Four Knights with 4 g3.} 10. h3 {[%emt 0:07:20]} Bh5 {[%emt 0:00:17]} 11. g4 {[%emt 0:11:15]} Bg6 {[%emt 0:00:07] White should prevent ...e4.} 12. Nxe5 {[%emt 0:07:14]} Nxe5 {[%emt 0:00:10]} 13. d4 {[%emt 0:00:44] [#]} c6 $146 {[%emt 0:32:46][%cal Of7f5]} ({Predecessor:} 13... f5 14. g5 f4 15. dxc5 Qxg5 16. Qd5+ Nf7 17. Qxg5 Nxg5 18. Rb1 Rae8 19. Rxe8 Rxe8 20. Bxf4 {½-½ Howell,D (2655)-Matlakov,M (2701) Gibraltar Masters 15th 2017 (9)}) 14. dxc5 {[%emt 0:13:58] [#] Black must now prevent Qxd8.} Qxd1 {[%emt 0:26:59]} 15. Rxd1 {[%emt 0:00:10][%cal Be1d1,Bd1d2,Bd2d4][%mdl 32] And now f4 would win.} Bxc2 {[%emt 0:00:22]} 16. Rd2 {[%emt 0:06:42]} Ba4 {[%emt 0:00:07]} 17. Rb1 {[%emt 0:24:05]} Bb5 {[%emt 0:04:19]} 18. Rd4 {[%emt 0:11:37]} Rad8 {[%emt 0:08:07]} 19. Bf4 {[%emt 0:01:50]} f6 {[%emt 0:01:03]} 20. a4 {[%emt 0:05:05]} Ba6 {[%emt 0:00:15]} 21. Rbd1 {[%emt 0:00:39]} Rde8 {[%emt 0:01:14]} 22. Bg3 {[%emt 0:00:52]} Re7 {[%emt 0:02:24]} 23. Kh2 {[%emt 0:02:16]} (23. f4 $5 Ng6 24. Re4 $11) 23... Rfe8 {[%emt 0:01:06]} 24. Bf4 {[%emt 0:00:54] Weighted Error Value: White=0.07 (flawless) /Black=0.09 (flawless)} 1/2-1/2

[Event "Charlotte Spring IM-C 2023"]
[Site "Charlotte"]
[Date "2023.03.16"]
[Round "2.2"]
[White "Yu, Jiangwei"]
[Black "Georgiev, Vladimir"]
[Result "0-1"]
[ECO "E48"]
[WhiteElo "2167"]
[BlackElo "2404"]
[Annotator "TA"]
[PlyCount "70"]
[EventDate "2023.03.14"]
[EventType "tourn"]
[EventCountry "USA"]
[SourceTitle "playchess.com"]
[Source "ChessBase"]
[SourceQuality "1"]
[TimeControl "5400+30"]

{[%evp 10,69,11,12,16,-20,-10,-19,-21,-79,-42,-36,-44,-38,-58,-43,-35,-39,-22,-1,-23,-2,-6,-66,-34,-37,-38,-71,-54,-121,-109,-120,-109,-132,-133,-374,-379,-381,-376,-371,-364,-344,-339,-485,-483,-461,-468,-2056,-1724,-29996,-29991,-29993,-29989,-29989,-29990,-29990,-29989,-29991,-29992,-29998,-29999,-29999]} 1. d4 {[%emt 0:02:45]} Nf6 {[%emt 0:00:41]} 2. c4 {[%emt 0:00:21]} e6 {[%emt 0:00:11]} 3. Nc3 {[%emt 0:00:28]} Bb4 {[%emt 0:00:28]} 4. e3 {[%emt 0:00:06]} O-O {[%emt 0:00:10]} 5. Bd3 {[%emt 0:03:38]} d5 {[%emt 0:00:09]} 6. a3 {[%emt 0:00:05]} dxc4 {[%emt 0:01:29] E48: Nimzo-Indian: Rubinstein: 5 Bd3 d5 including 6 Ne2, but excluding 6 a3.} 7. axb4 {[%emt 0:02:08]} cxd3 {[%emt 0:00:05] [#]} 8. Qxd3 $146 {[%emt 0:15:00]} ({Predecessor:} 8. Nf3 b6 9. O-O Bb7 10. Ne5 Nbd7 11. Nxd3 Qe7 12. b3 e5 13. Ba3 Rfd8 14. b5 {½-½ Beradze,D-Kholmov,R Moscow-ch49 1971}) 8... Nc6 {[%emt 0:00:38] The position is equal.} 9. Ra4 {[%emt 0:17:33]} (9. b5 $1 $11 {remains equal.} Nb4 10. Qd2) 9... e5 {[%emt 0:01:36][%cal Re5d4]} 10. Nge2 {[%emt 0:01:37]} Qe7 {[%emt 0:09:32]} 11. b5 {[%emt 0:03:53]} Nb4 {[%emt 0:05:50]} 12. Qb1 {[%emt 0:00:30]} exd4 {[%emt 0:03:43]} 13. Nxd4 {[%emt 0:01:30]} c5 {[%emt 0:00:23]} 14. bxc6 {[%emt 0:01:32]} bxc6 {[%emt 0:00:07] Hoping for ...c5.} 15. O-O $1 {[%emt 0:07:20]} c5 {[%emt 0:00:08]} 16. Nf3 {[%emt 0:00:45]} (16. Nf5 $11 Qe5 17. e4) 16... Bb7 {[%emt 0:04:07]} 17. Qf5 {[%emt 0:04:55]} Rfd8 {[%emt 0:04:19]} 18. Ra5 {[%emt 0:04:21]} Nd3 $36 {[%emt 0:04:57][%mdl 2048] Black is pushing.} 19. Ra4 {[%emt 0:10:16]} (19. Qg5 $15) 19... Bc6 $17 {[%emt 0:07:52]} 20. Ra1 {[%emt 0:03:41]} Rab8 {[%emt 0:00:57]} 21. Rd1 {[%emt 0:01:28] [#]} Ne4 $1 {[%emt 0:12:43][%cal Bf6e4,Be4c3,Bc3e4][%mdl 32] Strongly threatening ...g6. Black is more active.} (21... Nxb2 22. Bxb2 Rxb2 23. Rxd8+ Qxd8 24. Qxc5 $14) 22. Rxd3 $2 {[%emt 0:08:18] White does not recover from this.} (22. Rf1 $17 {was forced.}) 22... Rxd3 $19 {[%emt 0:00:23]} 23. Ne5 {[%emt 0:00:03] [#]} g6 $1 {[%emt 0:06:10]} 24. Nxc6 {[%emt 0:01:35]} Qd6 {[%emt 0:00:30] ( -> ...Rd1+)} 25. Qf3 {[%emt 0:01:18] Inhibits Rd1+.} (25. Qxe4 $2 Rd1+ 26. Nxd1 Qxd1#) 25... Nxc3 {[%emt 0:01:56]} (25... Qxc6 $2 {is the wrong capture.} 26. Rxa7 (26. Nxe4 $2 {too greedy.} Qxe4 27. Qe2 Rbd8 $19) 26... f5 27. g3 $19) 26. g3 {[%emt 0:00:31]} (26. g4 {was worth a try.} Rb6 27. Nxa7) 26... Rd1+ {[%emt 0:02:14]} 27. Kg2 {[%emt 0:00:02]} Qd3 {[%emt 0:00:37][%csl Gd1][%cal Rd3f1]} 28. g4 {[%emt 0:07:13] [#]} (28. Qxf7+ $142 Kxf7 29. Ne5+ Ke8 30. Nxd3) 28... Ne4 $1 {[%emt 0:03:34][%csl Gd1][%cal Rd3f1]} 29. Qf4 {[%emt 0:01:04]} (29. Qxf7+ Kh8) 29... Re8 {[%emt 0:02:52] Black mates.} 30. Ne5 {[%emt 0:00:28] [#]} Rxe5 $1 {[%emt 0:03:16][%mdl 512]} 31. Qxe5 {[%emt 0:00:07]} Qf1+ {[%emt 0:00:15]} 32. Kf3 {[%emt 0:00:02]} Qxf2+ {[%emt 0:00:45]} ({Stronger than} 32... Rxc1 33. Rxc1 Nd2+ 34. Kg3 Qxc1 35. Qb8+ Kg7 36. Qe5+ f6 37. Qe7+ Kg8 38. Qd8+ Kg7 39. Qe7+ Kg8 40. Qd8+ Kg7 41. Qe7+ $11) 33. Kxe4 {[%emt 0:00:04] [#]} f5+ $1 {[%emt 0:00:47][%mdl 512]} 34. gxf5 {[%emt 0:00:13]} (34. Qxf5 gxf5+) 34... Qg2+ {[%emt 0:00:07]} 35. Kf4 {[%emt 0:00:04]} Rf1# {[%emt 0:00:05] A superb game by Georgiev.   Weighted Error Value: White=0.74/Black=0.03 (flawless)} 0-1

[Event "Charlotte Spring IM-C 2023"]
[Site "Charlotte"]
[Date "2023.03.16"]
[Round "2.3"]
[White "Petenyi, Tamas"]
[Black "Chiku-Ratte, Olivier-Kenta"]
[Result "1/2-1/2"]
[WhiteElo "2325"]
[BlackElo "2301"]
[Annotator "TA"]
[PlyCount "33"]
[EventDate "2023.03.14"]
[EventType "tourn"]
[EventCountry "USA"]
[SourceTitle "playchess.com"]
[Source "ChessBase"]
[SourceQuality "1"]
[TimeControl "5400+30"]

{[%evp 16,19,16,-6,0,0]} 1. Nf3 {[%emt 0:01:09]} Nf6 {[%emt 0:00:10]} 2. g3 {[%emt 0:00:06]} b6 {[%emt 0:00:06]} 3. Bg2 {[%emt 0:00:05]} Bb7 {[%emt 0:00:04]} 4. O-O {[%emt 0:00:08]} g6 {[%emt 0:00:04]} 5. b3 {[%emt 0:00:06]} Bg7 {[%emt 0:00:06]} 6. Bb2 {[%emt 0:00:05]} O-O {[%emt 0:00:07]} 7. c4 {[%emt 0:00:06]} c5 {[%emt 0:00:05]} 8. d3 {[%emt 0:00:07] 8.d4 is becoming the main line.} d6 {[%emt 0:00:06]} 9. Nbd2 {[%emt 0:00:05]} Nbd7 {[%emt 0:00:10] A30: Symmetrical English: Double Fianchetto and Hedgehog.} 10. Qc2 {[%emt 0:00:14] [#] An uneventful encounter.} {Predecessor:} a6 $146 11. e3 b5 12. d4 cxd4 13. Bxd4 Rc8 14. Qd1 b4 15. a3 bxa3 16. Rxa3 Nc5 17. Qe2 {½-½ Cruz,N (1783)-Passos,R (1915) BRA-ch U2000 Amateurs 2022 (5)} 1/2-1/2

[Event "Charlotte Spring IM-C 2023"]
[Site "Charlotte"]
[Date "2023.03.16"]
[Round "2.4"]
[White "Nguyen, James Le"]
[Black "Vanapalli, Vishnu"]
[Result "1/2-1/2"]
[ECO "C78"]
[WhiteElo "2100"]
[BlackElo "2226"]
[Annotator "TA"]
[PlyCount "107"]
[EventDate "2023.03.14"]
[EventType "tourn"]
[EventCountry "USA"]
[SourceTitle "playchess.com"]
[Source "ChessBase"]
[SourceQuality "1"]
[TimeControl "5400+30"]

{[%evp 17,107,20,45,25,36,31,17,14,72,61,66,47,51,27,33,28,29,29,26,27,42,45,85,24,24,38,40,33,35,33,30,37,32,34,34,25,39,39,47,27,40,43,83,81,73,73,82,82,150,133,175,197,191,197,197,158,163,151,159,124,429,429,491,485,462,394,489,481,542,528,451,320,297,87,87,0,0,0,0,0,0,0,0,0,0,0,0,0,0,0,0,0]} 1. e4 {[%emt 0:00:22]} e5 {[%emt 0:01:30]} 2. Nf3 {[%emt 0:00:07]} Nc6 {[%emt 1:30:00]} 3. Bb5 {[%emt 0:00:26]} a6 {[%emt 0:00:00]} 4. Ba4 {[%emt 0:00:09]} Nf6 {[%emt 0:00:00]} 5. O-O {[%emt 0:00:26]} b5 {[%emt 0:00:00]} 6. Bb3 {[%emt 0:00:10]} Bc5 {[%emt 0:00:00]} 7. a4 {[%emt 0:00:44]} Rb8 {[%emt 0:00:00]} 8. c3 {[%emt 0:00:36]} d6 {[%emt 0:00:00]} 9. d4 {[%emt 0:00:43]} Bb6 $1 {[%emt 0:00:00]} 10. a5 $1 {[%emt 0:00:46] The main line 10.a5 scores better than 10.axb5. C78: Ruy Lopez: Archangelsk and Möller Defences.} Ba7 {[%emt 0:00:00]} (10... Bxa5 $2 11. dxe5 (11. d5 Ne7 $18) 11... dxe5 12. Qxd8+ Kxd8 13. Bd5 (13. Bxf7 Bb6 $16) 13... Nxd5 14. exd5 $18) 11. h3 {[%emt 0:00:26]} O-O {[%emt 0:00:00]} 12. Be3 {[%emt 0:01:40]} Nxe4 {[%emt 0:00:00]} (12... Ra8 $11) 13. Bd5 $16 {[%emt 0:00:52][%csl LRc6,LRe4]} exd4 {[%emt 0:00:00]} 14. Bxe4 {[%emt 0:01:07][%cal Rc3d4]} d5 {[%emt 0:00:00] [#]} 15. Bxh7+ $1 {[%emt 0:03:03]} Kxh7 {[%emt 0:00:00]} 16. cxd4 {[%emt 0:00:17] Qc2+ is the strong threat.} Bf5 {[%emt 0:00:00] Dodges Qc2} 17. Nbd2 {[%emt 0:00:56]} Kg8 {[%emt 0:00:00]} 18. Nb3 {[%emt 0:00:48]} f6 {[%emt 0:00:00]} 19. Rc1 {[%emt 0:01:17]} Qd7 {[%emt 0:00:00] [#]} 20. Qd2 {[%emt 0:03:57]} (20. Nh4 $1 $16 {[%cal Rh4f5]} Ne7 21. Re1) 20... Rbe8 {[%emt 0:00:00] [#]} 21. Rfe1 $146 {[%emt 0:02:52]} ({Predecessor:} 21. Bf4 Be4 22. Nh2 Bf5 23. Qc3 Re6 24. Rfe1 Rfe8 25. Rxe6 Rxe6 26. Nf1 Bh7 27. Bg3 {0-1 Shuvalova,P (2492)-Strybuk,A (2312) Chigorin Memorial 29th 2022 (4)}) 21... Be4 {[%emt 0:00:00]} 22. Nh2 {[%emt 0:01:51][%cal Bf3h2,Bh2f1,Bf1g3][%mdl 32]} Re6 {[%emt 0:00:00]} 23. Nc5 {[%emt 0:01:37]} Bxc5 {[%emt 0:00:00]} 24. Rxc5 {[%emt 0:00:12]} Nd8 {[%emt 0:00:00]} 25. Nf1 {[%emt 0:10:37]} c6 {[%emt 0:00:00]} 26. Ng3 {[%emt 0:03:06]} Rfe8 {[%emt 0:00:00]} 27. Rcc1 {[%emt 0:05:49]} Nf7 {[%emt 0:00:00]} 28. b3 {[%emt 0:03:13]} Bh7 {[%emt 0:00:00]} 29. Qb4 {[%emt 0:08:39]} g5 {[%emt 0:00:00]} 30. Bd2 {[%emt 0:06:43]} Rxe1+ {[%emt 0:02:51]} 31. Bxe1 {[%emt 0:03:17]} Bg6 {[%emt 0:00:37]} 32. Qc5 {[%emt 0:04:03]} f5 {[%emt 0:02:50] [#]} (32... Re6 $142) 33. Bd2 $1 {[%emt 0:09:05]} (33. Qxc6 $2 Qxc6 34. Rxc6 Rxe1+ $19) 33... f4 {[%emt 0:04:43]} 34. Qxc6 {[%emt 0:06:57]} Qe6 {[%emt 0:00:06]} 35. Nf1 {[%emt 0:02:41]} Bf5 {[%emt 0:00:06]} 36. Qxe6 {[%emt 0:01:47]} Rxe6 {[%emt 0:05:47]} 37. Rc5 {[%emt 0:03:14]} Re4 {[%emt 0:00:00]} 38. Rc6 {[%emt 0:05:18]} (38. Rxd5 $6 Be6 39. f3 Bxd5 $14) 38... Rxd4 $2 {[%emt 0:00:00][%mdl 8192]} (38... Re6 $16 39. Rc5 Kh7) 39. Rxa6 $18 {[%emt 0:00:06] Black must now prevent Ra8+.} Bc2 {[%emt 0:00:00]} 40. Ra8+ {[%emt 0:00:46]} Kh7 {[%emt 0:00:00]} 41. b4 {[%emt 0:04:06] Hoping for a6.} Bd3 {[%emt 0:00:00]} 42. Rf8 {[%emt 0:02:38] a6 would be deadly.} Bxf1 {[%emt 0:00:12]} 43. Rxf7+ {[%emt 0:01:45][%mdl 4096] Endgame KRB-KRB} Kg6 {[%emt 0:03:18] [#]} 44. Rg7+ {[%emt 0:00:33][%mdl 512]} Kf5 {[%emt 0:00:00]} (44... Kxg7 $2 45. Bc3 Kf7 46. Bxd4 $18) 45. Kxf1 {[%emt 0:01:21]} (45. g4+ $18 {is more deadly.} Ke4 46. Kxf1 Rxd2 47. Kg2 (47. Rxg5 f3 $16)) 45... Rxd2 {[%emt 0:00:00] KR-KR} 46. Rb7 {[%emt 0:00:13]} (46. Rg8 $16) 46... Ke4 $1 $11 {[%emt 0:00:00] The position is equal.} 47. Rxb5 {[%emt 0:01:13] aiming for a6.} Ra2 $1 {[%emt 0:01:08]} 48. Ke1 {[%emt 0:01:07]} d4 $1 {[%emt 0:00:21]} 49. Rxg5 {[%emt 0:00:32] Strongly threatening Rc5.} Kd3 $1 {[%emt 0:00:20][%cal Ra2a1]} (49... Ra1+ $2 50. Kd2 Ra2+ 51. Kc1 $18 (51. Ke1 Kd3 $11)) 50. f3 {[%emt 0:00:14]} Ra1+ {[%emt 0:01:03]} 51. Kf2 {[%emt 0:00:05]} Ra2+ {[%emt 0:00:25]} 52. Ke1 {[%emt 0:00:11]} Ra1+ {[%emt 0:00:14]} 53. Kf2 {[%emt 0:00:03]} Ra2+ {[%emt 0:00:22]} 54. Ke1 {[%emt 0:00:16] White really could win this.   Weighted Error Value: White=0.21 (precise) /Black=0.20 (precise)} 1/2-1/2

[Event "Charlotte Spring IM-C 2023"]
[Site "Charlotte"]
[Date "2023.03.16"]
[Round "2.5"]
[White "Jayaraman, Roshan"]
[Black "Sriniaiyer, Sudarshan"]
[Result "1/2-1/2"]
[ECO "D55"]
[WhiteElo "1907"]
[BlackElo "2186"]
[Annotator "TA"]
[PlyCount "75"]
[EventDate "2023.03.14"]
[EventType "tourn"]
[EventCountry "USA"]
[SourceTitle "playchess.com"]
[Source "ChessBase"]
[SourceQuality "1"]
[TimeControl "5400+30"]

{[%evp 23,75,0,0,11,13,16,14,12,22,19,20,12,20,13,12,23,29,20,20,4,30,20,12,11,11,4,0,0,4,6,16,29,25,12,19,13,23,7,7,0,0,0,0,0,0,0,0,0,0,0,0,0,0,0]} 1. d4 {[%emt 0:05:27]} Nf6 {[%emt 1:31:00]} 2. c4 {[%emt 0:00:12]} e6 {[%emt 0:00:00]} 3. Nc3 {[%emt 0:00:23]} d5 {[%emt 0:00:00]} 4. Bg5 {[%emt 0:00:31]} Be7 {[%emt 0:00:00]} 5. e3 {[%emt 0:00:12]} O-O {[%emt 0:00:00]} 6. Nf3 {[%emt 0:00:09]} h6 {[%emt 0:00:00]} 7. Bxf6 {[%emt 0:00:38]} Bxf6 {[%emt 0:00:00]} 8. Rc1 {[%emt 0:00:19]} c6 {[%emt 0:00:00]} 9. Bd3 {[%emt 0:01:09]} Nd7 {[%emt 0:00:00]} 10. O-O {[%emt 0:00:20]} dxc4 {[%emt 0:00:00]} 11. Bxc4 {[%emt 0:00:11]} e5 {[%emt 0:00:00]} 12. Ne4 {[%emt 0:03:04]} exd4 {[%emt 0:00:00]} 13. Nxf6+ {[%emt 0:00:12] D55: Queen's Gambit Declined: 4 Bg5 Be7: Lines without ...h6 and 6...h6 7 Bxf6.} Qxf6 {[%emt 0:00:00]} 14. Qxd4 {[%emt 0:00:50]} Qe7 {[%emt 0:00:00]} 15. Rfd1 {[%emt 0:05:41]} Nb6 {[%emt 0:00:00]} 16. Bb3 {[%emt 0:01:49] Black is weak on the dark squares} Be6 {[%emt 0:00:00] [#]} 17. Qe5 $146 {[%emt 0:05:10]} ({Predecessor:} 17. Qe4 Rfe8 18. Bxe6 Qxe6 19. Qxe6 Rxe6 20. Rd4 Kf8 {½-½ Doda,Z-Lengyel,L Kecskemet Toth Memorial-02 1968 (6)}) 17... Rfe8 {[%emt 0:00:00]} 18. Nd4 {[%emt 0:04:38] With the idea Nxe6.} (18. Bxe6 {simplifies} Qxe6 19. Qxe6 Rxe6 20. Nd4) 18... Bxb3 {[%emt 0:00:00]} 19. Qxe7 {[%emt 0:01:04]} Rxe7 {[%emt 0:00:00]} 20. Nxb3 {[%emt 0:00:16]} Kf8 {[%emt 0:00:00]} 21. Rd4 {[%emt 0:03:26]} Rc8 {[%emt 0:00:00]} 22. Kf1 {[%emt 0:16:30]} Rd7 {[%emt 0:00:00]} 23. Rxd7 {[%emt 0:03:03]} Nxd7 $11 {[%emt 0:00:00][%mdl 4096] Endgame KRN-KRN} 24. Na5 {[%emt 0:00:53]} Rc7 {[%emt 0:00:00]} 25. b4 {[%emt 0:01:20]} a6 {[%emt 0:00:00]} 26. Nb3 {[%emt 0:04:20]} b6 {[%emt 0:01:18]} 27. Ke2 {[%emt 0:00:59]} Ke7 {[%emt 0:03:02]} 28. e4 {[%emt 0:02:03]} c5 {[%emt 0:01:08]} 29. bxc5 {[%emt 0:01:31]} Nxc5 {[%emt 0:00:28]} 30. Nxc5 {[%emt 0:01:48]} bxc5 {[%emt 0:00:05] KR-KR. The position is equal.} ({Don't take} 30... Rxc5 31. Rxc5 bxc5 32. Kd3 $16) 31. Rb1 {[%emt 0:07:05]} Rd7 {[%emt 0:00:45]} 32. Rb6 {[%emt 0:04:02]} Rd4 {[%emt 0:00:06]} 33. Rxa6 {[%emt 0:00:32]} Rxe4+ {[%emt 0:00:05]} 34. Kd3 {[%emt 0:00:12]} Rd4+ {[%emt 0:01:01]} 35. Kc3 {[%emt 0:00:10]} Rf4 {[%emt 0:01:31]} 36. f3 {[%emt 0:00:13]} Kd7 {[%emt 0:00:15]} 37. a4 {[%emt 0:02:05]} Kc7 {[%emt 0:00:31]} 38. a5 {[%emt 0:03:50] An even fight not without its subleties.   Weighted Error Value: White=0.03 (flawless) /Black=0.03 (flawless)} 1/2-1/2